[Event "Titled Tuesday Blitz July 18 Early 2023"]
[White "Ezat, Mohamed"]
[Black "Oro, Faustino"]
[WhiteFideId "10600906"]
[BlackFideId "20000197"]
[WhiteElo "2551"]
[BlackElo "2774"]
[Result "0-1"]
[Round "8"]
[TimeControl "180+2"]
[Date "2023.07.18"]
[WhiteClock "0:00:07"]
[BlackClock "0:00:05"]
[Board "59"]

1. d4 {[%clk 0:03:00]}  Nf6 {[%clk 0:02:59]} 2. c4 {[%clk 0:03:00]}  e6 {[%clk 0:02:58]} 3. Nc3 {[%clk 0:03:01]}  Bb4 {[%clk 0:02:53]} 4. f3 {[%clk 0:03:00]}  c5 {[%clk 0:02:53]} 5. d5 {[%clk 0:03:00]}  b5 {[%clk 0:02:43]} 6. e4 {[%clk 0:02:31]}  bxc4 {[%clk 0:02:41]} 7. Bxc4 {[%clk 0:02:30]}  O-O {[%clk 0:02:40]} 8. Ne2 {[%clk 0:02:26]}  exd5 {[%clk 0:02:39]} 9. Bxd5 {[%clk 0:02:26]}  Nxd5 {[%clk 0:02:24]} 10. Qxd5 {[%clk 0:02:26]}  Qb6 {[%clk 0:02:09]} 11. a3 {[%clk 0:01:58]}  Bb7 {[%clk 0:01:58]} 12. Qb3 {[%clk 0:01:54]}  Ba5 {[%clk 0:01:58]} 13. Qxb6 {[%clk 0:01:51]}  axb6 {[%clk 0:01:59]} 14. Bd2 {[%clk 0:01:42]}  Nc6 {[%clk 0:01:50]} 15. Nd5 {[%clk 0:01:41]}  Bxd2+ {[%clk 0:01:47]} 16. Kxd2 {[%clk 0:01:41]}  Na5 {[%clk 0:01:47]} 17. Ne7+ {[%clk 0:01:29]}  Kh8 {[%clk 0:01:46]} 18. Kc3 {[%clk 0:01:28]}  Rfe8 {[%clk 0:01:46]} 19. Nf5 {[%clk 0:01:26]}  d5 {[%clk 0:01:43]} 20. Nd6 {[%clk 0:01:21]}  d4+ {[%clk 0:01:42]} 21. Kc2 {[%clk 0:01:21]}  Re7 {[%clk 0:01:25]} 22. Nxb7 {[%clk 0:01:14]}  Nxb7 {[%clk 0:01:21]} 23. Nf4 {[%clk 0:01:05]}  Rd8 {[%clk 0:01:15]} 24. Nd5 {[%clk 0:01:03]}  Re6 {[%clk 0:01:13]} 25. Kd3 {[%clk 0:00:59]}  Kg8 {[%clk 0:00:49]} 26. b4 {[%clk 0:00:53]}  Kf8 {[%clk 0:00:48]} 27. bxc5 {[%clk 0:00:51]}  bxc5 {[%clk 0:00:48]} 28. Rab1 {[%clk 0:00:51]}  Nd6 {[%clk 0:00:49]} 29. Rhc1 {[%clk 0:00:49]}  Rc8 {[%clk 0:00:45]} 30. a4 {[%clk 0:00:43]}  f5 {[%clk 0:00:44]} 31. exf5 {[%clk 0:00:37]}  Nxf5 {[%clk 0:00:45]} 32. Rb5 {[%clk 0:00:35]}  Rec6 {[%clk 0:00:40]} 33. Nb6 {[%clk 0:00:31]}  R8c7 {[%clk 0:00:39]} 34. Nc4 {[%clk 0:00:31]}  Rc8 {[%clk 0:00:29]} 35. a5 {[%clk 0:00:31]}  Ne7 {[%clk 0:00:28]} 36. Ra1 {[%clk 0:00:31]}  Nd5 {[%clk 0:00:28]} 37. a6 {[%clk 0:00:31]}  Nb4+ {[%clk 0:00:27]} 38. Rxb4 {[%clk 0:00:25]}  cxb4 {[%clk 0:00:27]} 39. a7 {[%clk 0:00:22]}  Ra8 {[%clk 0:00:27]} 40. Ra4 {[%clk 0:00:16]}  Rc7 {[%clk 0:00:24]} 41. Rxb4 {[%clk 0:00:16]}  Raxa7 {[%clk 0:00:24]} 42. Kxd4 {[%clk 0:00:15]}  Ra2 {[%clk 0:00:24]} 43. Ne3 {[%clk 0:00:08]}  Rd7+ {[%clk 0:00:20]} 44. Ke4 {[%clk 0:00:08]}  Re2 {[%clk 0:00:20]} 45. Rb3 {[%clk 0:00:06]}  Re7+ {[%clk 0:00:17]} 46. Kd4 {[%clk 0:00:06]}  Kf7 {[%clk 0:00:17]} 47. g4 {[%clk 0:00:05]}  Rf2 {[%clk 0:00:16]} 48. Nf5 {[%clk 0:00:05]}  Rd7+ {[%clk 0:00:16]} 49. Ke5 {[%clk 0:00:05]}  Re2+ {[%clk 0:00:15]} 50. Kf4 {[%clk 0:00:05]}  Rxh2 {[%clk 0:00:14]} 51. Ng3 {[%clk 0:00:02]}  Rhd2 {[%clk 0:00:12]} 52. Ne4 {[%clk 0:00:03]}  R2d5 {[%clk 0:00:11]} 53. Rb6 {[%clk 0:00:03]}  h6 {[%clk 0:00:11]} 54. g5 {[%clk 0:00:03]}  h5 {[%clk 0:00:10]} 55. g6+ {[%clk 0:00:04]}  Ke7 {[%clk 0:00:11]} 56. Ng3 {[%clk 0:00:03]}  Rd4+ {[%clk 0:00:10]} 57. Kg5 {[%clk 0:00:03]}  R7d5+ {[%clk 0:00:08]} 58. Nf5+ {[%clk 0:00:04]}  Kd7 {[%clk 0:00:06]} 59. Rb7+ {[%clk 0:00:05]}  Ke6 {[%clk 0:00:07]} 60. Rxg7 {[%clk 0:00:06]}  Rxf5+ {[%clk 0:00:07]} 61. Kh6 {[%clk 0:00:05]}  h4 {[%clk 0:00:07]} 62. Rg8 {[%clk 0:00:05]}  h3 {[%clk 0:00:07]} 63. g7 {[%clk 0:00:05]}  Rh4+ {[%clk 0:00:07]} 64. Kg6 {[%clk 0:00:05]}  Rf6+ {[%clk 0:00:08]} 65. Kg5 {[%clk 0:00:05]}  h2 {[%clk 0:00:02]} 66. Re8+ {[%clk 0:00:05]}  Kd7 {[%clk 0:00:02]} 67. g8=Q {[%clk 0:00:05]}  h1=Q {[%clk 0:00:02]} 68. Rd8+ {[%clk 0:00:06]}  Kc7 {[%clk 0:00:02]} 69. Qc4+ {[%clk 0:00:06]}  Kxd8 {[%clk 0:00:02]} 70. Qd5+ {[%clk 0:00:06]}  Ke7 {[%clk 0:00:03]} 71. Qb7+ {[%clk 0:00:06]}  Kd6 {[%clk 0:00:03]} 72. Qb6+ {[%clk 0:00:07]}  Kd5 {[%clk 0:00:03]} 73. Qb5+ {[%clk 0:00:07]}  Kd4 {[%clk 0:00:03]} 74. Qb4+ {[%clk 0:00:08]}  Ke3 {[%clk 0:00:04]} 75. Qc3+ {[%clk 0:00:07]}  Kf2 {[%clk 0:00:04]} 76. Qd2+ {[%clk 0:00:08]}  Kg3 {[%clk 0:00:03]} 77. Qd6+ {[%clk 0:00:07]}  Rxd6 {[%clk 0:00:03]} 78. f4 {[%clk 0:00:07]}  Qd5+ {[%clk 0:00:04]} 79. f5 {[%clk 0:00:07]}  Rg4+ {[%clk 0:00:04]} 80. Kh5 {[%clk 0:00:07]}  Qxf5# {[%clk 0:00:05]} 0-1


[Site "https://www.chess.com"]

[Event "Titled Tuesday Blitz July 18 Early 2023"]
[White "djokovic74"]
[Black "robertoalejandro10"]
[WhiteElo "2742"]
[BlackElo "2551"]
[Result "0-1"]
[Round "8"]
[TimeControl "180+2"]
[Date "2023.07.18"]
[WhiteClock "0:00:01"]
[BlackClock "0:00:05"]
[Board "60"]

1. e4 {[%clk 0:03:00]}  c5 {[%clk 0:02:56]} 2. Nf3 {[%clk 0:03:00]}  g6 {[%clk 0:02:55]} 3. d4 {[%clk 0:03:01]}  cxd4 {[%clk 0:02:56]} 4. Nxd4 {[%clk 0:03:01]}  Bg7 {[%clk 0:02:54]} 5. c4 {[%clk 0:03:02]}  Nc6 {[%clk 0:02:53]} 6. Be3 {[%clk 0:03:02]}  Nf6 {[%clk 0:02:53]} 7. Nc3 {[%clk 0:03:02]}  Ng4 {[%clk 0:02:53]} 8. Qxg4 {[%clk 0:03:02]}  Nxd4 {[%clk 0:02:52]} 9. Qd1 {[%clk 0:03:03]}  Ne6 {[%clk 0:02:52]} 10. Rc1 {[%clk 0:03:03]}  b6 {[%clk 0:02:52]} 11. Be2 {[%clk 0:03:00]}  Bb7 {[%clk 0:02:52]} 12. f3 {[%clk 0:03:01]}  O-O {[%clk 0:02:51]} 13. O-O {[%clk 0:03:01]}  Be5 {[%clk 0:02:51]} 14. Qd2 {[%clk 0:02:53]}  Qb8 {[%clk 0:02:50]} 15. h3 {[%clk 0:02:39]}  Nf4 {[%clk 0:02:37]} 16. Nd5 {[%clk 0:02:33]}  Bxd5 {[%clk 0:02:23]} 17. cxd5 {[%clk 0:02:32]}  Nxe2+ {[%clk 0:01:55]} 18. Qxe2 {[%clk 0:02:32]}  Qb7 {[%clk 0:01:55]} 19. f4 {[%clk 0:02:30]}  Bg7 {[%clk 0:01:54]} 20. Rc2 {[%clk 0:02:24]}  Rac8 {[%clk 0:01:50]} 21. Rfc1 {[%clk 0:02:24]}  e6 {[%clk 0:01:46]} 22. Qd3 {[%clk 0:02:20]}  exd5 {[%clk 0:01:41]} 23. exd5 {[%clk 0:02:20]}  Rxc2 {[%clk 0:01:32]} 24. Rxc2 {[%clk 0:02:20]}  Rc8 {[%clk 0:01:32]} 25. Rxc8+ {[%clk 0:02:13]}  Qxc8 {[%clk 0:01:31]} 26. b3 {[%clk 0:02:12]}  h5 {[%clk 0:01:13]} 27. a4 {[%clk 0:01:48]}  Kh7 {[%clk 0:01:03]} 28. Kh2 {[%clk 0:01:44]}  Qe8 {[%clk 0:01:00]} 29. Bf2 {[%clk 0:01:41]}  Qe7 {[%clk 0:00:58]} 30. g4 {[%clk 0:01:40]}  hxg4 {[%clk 0:00:57]} 31. hxg4 {[%clk 0:01:40]}  Bh6 {[%clk 0:00:55]} 32. g5 {[%clk 0:01:11]}  Bg7 {[%clk 0:00:55]} 33. Kg2 {[%clk 0:01:10]}  Qb4 {[%clk 0:00:51]} 34. Be3 {[%clk 0:00:54]}  Qa3 {[%clk 0:00:50]} 35. Bf2 {[%clk 0:00:50]}  Qc1 {[%clk 0:00:43]} 36. Qh3+ {[%clk 0:00:39]}  Kg8 {[%clk 0:00:39]} 37. Qf3 {[%clk 0:00:40]}  Qc2 {[%clk 0:00:27]} 38. Kg3 {[%clk 0:00:38]}  Qd2 {[%clk 0:00:23]} 39. Qe4 {[%clk 0:00:34]}  Qc3+ {[%clk 0:00:18]} 40. Kg2 {[%clk 0:00:34]}  Qxb3 {[%clk 0:00:09]} 41. Qe8+ {[%clk 0:00:34]}  Kh7 {[%clk 0:00:09]} 42. Qxd7 {[%clk 0:00:25]}  Kg8 {[%clk 0:00:08]} 43. Qc6 {[%clk 0:00:17]}  Bf8 {[%clk 0:00:03]} 44. d6 {[%clk 0:00:16]}  Qd3 {[%clk 0:00:03]} 45. d7 {[%clk 0:00:16]}  Kh7 {[%clk 0:00:04]} 46. f5 {[%clk 0:00:10]}  Be7 {[%clk 0:00:03]} 47. fxg6+ {[%clk 0:00:08]}  fxg6 {[%clk 0:00:04]} 48. Qe6 {[%clk 0:00:08]}  Bxg5 {[%clk 0:00:03]} 49. Qf7+ {[%clk 0:00:08]}  Kh6 {[%clk 0:00:04]} 50. Qf8+ {[%clk 0:00:08]}  Kh5 {[%clk 0:00:04]} 51. Qh8+ {[%clk 0:00:06]}  Kg4 {[%clk 0:00:04]} 52. Qc8 {[%clk 0:00:05]}  Qf3+ {[%clk 0:00:04]} 53. Kg1 {[%clk 0:00:05]}  Qd1+ {[%clk 0:00:04]} 54. Kg2 {[%clk 0:00:06]}  Qd5+ {[%clk 0:00:04]} 55. Kf1 {[%clk 0:00:06]}  Qd1+ {[%clk 0:00:04]} 56. Be1 {[%clk 0:00:06]}  Qd3+ {[%clk 0:00:04]} 57. Kg2 {[%clk 0:00:03]}  Qf3+ {[%clk 0:00:04]} 58. Kh2 {[%clk 0:00:02]}  Bf4+ {[%clk 0:00:04]} 59. Kg1 {[%clk 0:00:03]}  Be3+ {[%clk 0:00:04]} 60. Kh2 {[%clk 0:00:02]}  Qe2+ {[%clk 0:00:04]} 61. Kh1 {[%clk 0:00:02]}  Qf1+ {[%clk 0:00:04]} 62. Kh2 {[%clk 0:00:02]}  Bf4+ {[%clk 0:00:04]} 63. Bg3 {[%clk 0:00:01]}  Bxg3# {[%clk 0:00:05]} 0-1


[Site "https://www.chess.com"]

[Event "Titled Tuesday Blitz July 18 Early 2023"]
[White "benny_aizenberg"]
[Black "Philippe, Guillaume"]
[BlackFideId "36048763"]
[WhiteElo "2646"]
[BlackElo "2523"]
[Result "1-0"]
[Round "8"]
[TimeControl "180+2"]
[Date "2023.07.18"]
[WhiteClock "0:00:52"]
[BlackClock "0:00:42"]
[Board "65"]

1. g4 {[%clk 0:03:00]}  e5 {[%clk 0:02:57]} 2. g5 {[%clk 0:03:01]}  Qxg5 {[%clk 0:02:57]} 3. d4 {[%clk 0:03:00]}  Qd8 {[%clk 0:02:56]} 4. dxe5 {[%clk 0:03:00]}  Nc6 {[%clk 0:02:55]} 5. Nf3 {[%clk 0:02:59]}  d6 {[%clk 0:02:54]} 6. Bf4 {[%clk 0:02:55]}  Bg4 {[%clk 0:02:44]} 7. exd6 {[%clk 0:02:48]}  Bxf3 {[%clk 0:02:43]} 8. d7+ {[%clk 0:02:33]}  Qxd7 {[%clk 0:02:42]} 9. Qxd7+ {[%clk 0:02:32]}  Kxd7 {[%clk 0:02:42]} 10. Bh3+ {[%clk 0:02:32]}  Kd8 {[%clk 0:01:50]} 11. exf3 {[%clk 0:02:30]}  Bd6 {[%clk 0:01:50]} 12. Bxd6 {[%clk 0:02:28]}  cxd6 {[%clk 0:01:50]} 13. Nc3 {[%clk 0:02:29]}  Nge7 {[%clk 0:01:49]} 14. O-O-O {[%clk 0:02:28]}  Kc7 {[%clk 0:01:38]} 15. Nb5+ {[%clk 0:02:29]}  Kb6 {[%clk 0:01:39]} 16. Nxd6 {[%clk 0:02:29]}  f6 {[%clk 0:01:37]} 17. Nc4+ {[%clk 0:02:26]}  Kc5 {[%clk 0:01:37]} 18. b3 {[%clk 0:02:23]}  Rhd8 {[%clk 0:01:35]} 19. a4 {[%clk 0:02:18]}  Nd5 {[%clk 0:01:27]} 20. Kb2 {[%clk 0:02:07]}  Nf4 {[%clk 0:01:24]} 21. Bd7 {[%clk 0:01:45]}  Nd4 {[%clk 0:01:16]} 22. Rxd4 {[%clk 0:01:02]}  Kxd4 {[%clk 0:01:15]} 23. Rd1+ {[%clk 0:01:03]}  Kc5 {[%clk 0:01:13]} 24. c3 {[%clk 0:00:57]}  Ng6 {[%clk 0:00:51]} 25. b4+ {[%clk 0:00:55]}  Kxc4 {[%clk 0:00:42]} 26. Bb5# {[%clk 0:00:52]} 1-0


[Site "https://www.chess.com"]

[Event "Titled Tuesday Blitz July 18 Early 2023"]
[White "MFatigue"]
[Black "Florescu, Codrut-Constantin"]
[BlackFideId "1202200"]
[WhiteElo "2518"]
[BlackElo "2625"]
[Result "0-1"]
[Round "8"]
[TimeControl "180+2"]
[Date "2023.07.18"]
[WhiteClock "0:00:02"]
[BlackClock "0:00:24"]
[Board "68"]

1. e4 {[%clk 0:03:00]}  c5 {[%clk 0:03:00]} 2. a3 {[%clk 0:03:00]}  e6 {[%clk 0:02:58]} 3. b4 {[%clk 0:03:01]}  cxb4 {[%clk 0:02:58]} 4. axb4 {[%clk 0:03:02]}  Bxb4 {[%clk 0:02:58]} 5. Bb2 {[%clk 0:03:01]}  Nf6 {[%clk 0:02:57]} 6. e5 {[%clk 0:03:02]}  Nd5 {[%clk 0:02:57]} 7. c4 {[%clk 0:03:03]}  Nc7 {[%clk 0:02:54]} 8. Ra3 {[%clk 0:03:03]}  d6 {[%clk 0:02:53]} 9. Rg3 {[%clk 0:03:02]}  d5 {[%clk 0:02:48]} 10. Rxg7 {[%clk 0:03:01]}  Nc6 {[%clk 0:02:46]} 11. Qh5 {[%clk 0:02:47]}  Rf8 {[%clk 0:02:27]} 12. Nf3 {[%clk 0:02:42]}  Be7 {[%clk 0:02:24]} 13. Bd3 {[%clk 0:02:21]}  dxc4 {[%clk 0:02:23]} 14. Bxh7 {[%clk 0:02:21]}  Nd5 {[%clk 0:02:23]} 15. Rxf7 {[%clk 0:01:52]}  Rxf7 {[%clk 0:02:22]} 16. Bg8 {[%clk 0:00:56]}  Qb6 {[%clk 0:02:21]} 17. Qxf7+ {[%clk 0:00:56]}  Kd8 {[%clk 0:02:22]} 18. O-O {[%clk 0:00:56]}  Qxb2 {[%clk 0:02:15]} 19. Nc3 {[%clk 0:00:55]}  Nxc3 {[%clk 0:02:03]} 20. dxc3 {[%clk 0:00:56]}  Qe2 {[%clk 0:01:44]} 21. Re1 {[%clk 0:00:40]}  Qd3 {[%clk 0:01:44]} 22. Bh7 {[%clk 0:00:38]}  Qd7 {[%clk 0:01:37]} 23. Bc2 {[%clk 0:00:32]}  Qe8 {[%clk 0:01:14]} 24. Qf4 {[%clk 0:00:30]}  Kc7 {[%clk 0:01:12]} 25. Qxc4 {[%clk 0:00:28]}  Bd7 {[%clk 0:01:11]} 26. Ra1 {[%clk 0:00:20]}  Qh5 {[%clk 0:01:09]} 27. h3 {[%clk 0:00:17]}  a6 {[%clk 0:01:07]} 28. Be4 {[%clk 0:00:15]}  Rg8 {[%clk 0:01:03]} 29. Kf1 {[%clk 0:00:14]}  Rc8 {[%clk 0:00:57]} 30. Bxc6 {[%clk 0:00:14]}  Bxc6 {[%clk 0:00:55]} 31. Qxe6 {[%clk 0:00:14]}  Bc5 {[%clk 0:00:54]} 32. Nd4 {[%clk 0:00:14]}  Bxd4 {[%clk 0:00:46]} 33. cxd4 {[%clk 0:00:14]}  Kb8 {[%clk 0:00:46]} 34. Qd6+ {[%clk 0:00:14]}  Ka7 {[%clk 0:00:45]} 35. d5 {[%clk 0:00:15]}  Bb5+ {[%clk 0:00:44]} 36. Kg1 {[%clk 0:00:16]}  Qe2 {[%clk 0:00:42]} 37. Qf6 {[%clk 0:00:10]}  Qe4 {[%clk 0:00:30]} 38. d6 {[%clk 0:00:06]}  Bc6 {[%clk 0:00:30]} 39. f3 {[%clk 0:00:06]}  Qd4+ {[%clk 0:00:29]} 40. Kh2 {[%clk 0:00:06]}  Qxa1 {[%clk 0:00:30]} 41. Qf4 {[%clk 0:00:05]}  Qa2 {[%clk 0:00:27]} 42. Qe3+ {[%clk 0:00:04]}  Ka8 {[%clk 0:00:27]} 43. e6 {[%clk 0:00:05]}  Qd5 {[%clk 0:00:27]} 44. d7 {[%clk 0:00:03]}  Bxd7 {[%clk 0:00:26]} 45. exd7 {[%clk 0:00:04]}  Qxd7 {[%clk 0:00:26]} 46. h4 {[%clk 0:00:04]}  Qd5 {[%clk 0:00:24]} 47. Qf4 {[%clk 0:00:04]}  Qc5 {[%clk 0:00:22]} 48. Qf7 {[%clk 0:00:02]}  Qc7+ {[%clk 0:00:22]} 49. Qxc7 {[%clk 0:00:02]}  Rxc7 {[%clk 0:00:23]} 50. h5 {[%clk 0:00:03]}  a5 {[%clk 0:00:23]} 51. g4 {[%clk 0:00:02]}  a4 {[%clk 0:00:24]} 52. h6 {[%clk 0:00:03]}  a3 {[%clk 0:00:23]} 53. g5 {[%clk 0:00:02]}  a2 {[%clk 0:00:24]} 0-1


[Site "https://www.chess.com"]

[Event "Titled Tuesday Blitz July 18 Early 2023"]
[White "Mohamed Anees M"]
[Black "Taboas Rodriguez, Daniel"]
[WhiteFideId "35065815"]
[BlackFideId "2208466"]
[WhiteElo "2616"]
[BlackElo "2495"]
[Result "1-0"]
[Round "8"]
[TimeControl "180+2"]
[Date "2023.07.18"]
[WhiteClock "0:01:25"]
[BlackClock "0:00:14"]
[Board "70"]

1. d4 {[%clk 0:03:00]}  Nf6 {[%clk 0:02:59]} 2. c4 {[%clk 0:03:01]}  g6 {[%clk 0:03:00]} 3. Nc3 {[%clk 0:03:00]}  Bg7 {[%clk 0:03:00]} 4. e4 {[%clk 0:03:00]}  d6 {[%clk 0:03:01]} 5. Be2 {[%clk 0:03:01]}  O-O {[%clk 0:03:01]} 6. Nf3 {[%clk 0:03:00]}  e5 {[%clk 0:03:01]} 7. O-O {[%clk 0:03:01]}  Nc6 {[%clk 0:03:01]} 8. d5 {[%clk 0:02:59]}  Ne7 {[%clk 0:03:01]} 9. Ne1 {[%clk 0:02:59]}  Ne8 {[%clk 0:03:01]} 10. Be3 {[%clk 0:03:00]}  f5 {[%clk 0:03:02]} 11. f3 {[%clk 0:03:01]}  f4 {[%clk 0:03:03]} 12. Bf2 {[%clk 0:03:01]}  g5 {[%clk 0:03:04]} 13. Nd3 {[%clk 0:03:01]}  Ng6 {[%clk 0:03:01]} 14. c5 {[%clk 0:03:01]}  Rf7 {[%clk 0:03:00]} 15. Rc1 {[%clk 0:03:01]}  Bf8 {[%clk 0:03:00]} 16. a4 {[%clk 0:02:49]}  h5 {[%clk 0:02:58]} 17. b4 {[%clk 0:02:48]}  Rg7 {[%clk 0:02:58]} 18. b5 {[%clk 0:02:48]}  Nf6 {[%clk 0:02:57]} 19. a5 {[%clk 0:02:39]}  g4 {[%clk 0:02:56]} 20. Kh1 {[%clk 0:02:38]}  g3 {[%clk 0:02:55]} 21. Bg1 {[%clk 0:02:27]}  h4 {[%clk 0:02:52]} 22. h3 {[%clk 0:02:23]}  Ne7 {[%clk 0:02:43]} 23. Re1 {[%clk 0:02:23]}  Nh5 {[%clk 0:01:50]} 24. Bf1 {[%clk 0:02:16]}  Ng6 {[%clk 0:01:36]} 25. cxd6 {[%clk 0:02:03]}  Bxd6 {[%clk 0:01:35]} 26. Nc5 {[%clk 0:01:58]}  Qe7 {[%clk 0:01:25]} 27. Ne6 {[%clk 0:01:57]}  Bxe6 {[%clk 0:01:22]} 28. dxe6 {[%clk 0:01:58]}  Qxe6 {[%clk 0:01:23]} 29. Nd5 {[%clk 0:01:55]}  Kh7 {[%clk 0:01:24]} 30. a6 {[%clk 0:01:53]}  bxa6 {[%clk 0:01:23]} 31. bxa6 {[%clk 0:01:53]}  Qd7 {[%clk 0:01:11]} 32. Qb3 {[%clk 0:01:48]}  Rgg8 {[%clk 0:01:06]} 33. Bb5 {[%clk 0:01:43]}  Qf7 {[%clk 0:00:54]} 34. Bc6 {[%clk 0:01:42]}  Rab8 {[%clk 0:00:52]} 35. Bb7 {[%clk 0:01:42]}  Nf6 {[%clk 0:00:46]} 36. Bxa7 {[%clk 0:01:39]}  Nxd5 {[%clk 0:00:42]} 37. Qxd5 {[%clk 0:01:38]}  Qxd5 {[%clk 0:00:42]} 38. exd5 {[%clk 0:01:32]}  Rbe8 {[%clk 0:00:35]} 39. Bc5 {[%clk 0:01:32]}  Rb8 {[%clk 0:00:27]} 40. Bxd6 {[%clk 0:01:32]}  cxd6 {[%clk 0:00:28]} 41. Rc7+ {[%clk 0:01:32]}  Rg7 {[%clk 0:00:28]} 42. Rxg7+ {[%clk 0:01:31]}  Kxg7 {[%clk 0:00:29]} 43. a7 {[%clk 0:01:32]}  Rxb7 {[%clk 0:00:23]} 44. a8=Q {[%clk 0:01:32]}  Rd7 {[%clk 0:00:23]} 45. Qc6 {[%clk 0:01:30]}  Nf8 {[%clk 0:00:23]} 46. Rb1 {[%clk 0:01:29]}  Kf7 {[%clk 0:00:23]} 47. Rb8 {[%clk 0:01:28]}  Ra7 {[%clk 0:00:20]} 48. Qe8+ {[%clk 0:01:26]}  Kf6 {[%clk 0:00:18]} 49. Qxf8+ {[%clk 0:01:26]}  Kg5 {[%clk 0:00:14]} 50. Rb1 {[%clk 0:01:25]} 1-0


[Site "https://www.chess.com"]

[Event "Titled Tuesday Blitz July 18 Early 2023"]
[White "Tomaszewski, Kacper"]
[Black "Frolyanov, Dmitry"]
[WhiteFideId "1127373"]
[BlackFideId "4151976"]
[WhiteElo "2490"]
[BlackElo "2608"]
[Result "0-1"]
[Round "8"]
[TimeControl "180+2"]
[Date "2023.07.18"]
[WhiteClock "0:00:00"]
[BlackClock "0:00:41"]
[Board "71"]

1. d4 {[%clk 0:03:00]}  d5 {[%clk 0:02:58]} 2. c4 {[%clk 0:03:00]}  e6 {[%clk 0:02:58]} 3. Nc3 {[%clk 0:03:00]}  c6 {[%clk 0:02:57]} 4. Nf3 {[%clk 0:02:57]}  dxc4 {[%clk 0:02:57]} 5. e4 {[%clk 0:02:56]}  b5 {[%clk 0:02:56]} 6. a4 {[%clk 0:02:57]}  Bb4 {[%clk 0:02:53]} 7. Bg5 {[%clk 0:02:54]}  Qb6 {[%clk 0:02:49]} 8. Be2 {[%clk 0:02:44]}  Nd7 {[%clk 0:02:46]} 9. O-O {[%clk 0:02:41]}  Ngf6 {[%clk 0:02:46]} 10. Qc2 {[%clk 0:02:09]}  O-O {[%clk 0:02:40]} 11. Rad1 {[%clk 0:01:59]}  Bb7 {[%clk 0:02:39]} 12. Ne5 {[%clk 0:01:59]}  a6 {[%clk 0:02:28]} 13. Kh1 {[%clk 0:01:39]}  h6 {[%clk 0:02:27]} 14. Bh4 {[%clk 0:01:38]}  Qc7 {[%clk 0:02:15]} 15. f4 {[%clk 0:01:37]}  Nxe5 {[%clk 0:02:13]} 16. fxe5 {[%clk 0:01:32]}  Nd7 {[%clk 0:02:12]} 17. Bg3 {[%clk 0:00:37]}  Rad8 {[%clk 0:01:56]} 18. Bf3 {[%clk 0:00:29]}  Qc8 {[%clk 0:01:40]} 19. d5 {[%clk 0:00:28]}  cxd5 {[%clk 0:01:35]} 20. exd5 {[%clk 0:00:28]}  Nc5 {[%clk 0:01:36]} 21. axb5 {[%clk 0:00:20]}  Bxc3 {[%clk 0:01:25]} 22. bxa6 {[%clk 0:00:18]}  Bxd5 {[%clk 0:01:15]} 23. Qxc3 {[%clk 0:00:14]}  Nxa6 {[%clk 0:01:13]} 24. Bxd5 {[%clk 0:00:13]}  Rxd5 {[%clk 0:01:12]} 25. Rxd5 {[%clk 0:00:13]}  exd5 {[%clk 0:01:13]} 26. Qd4 {[%clk 0:00:07]}  Qe6 {[%clk 0:01:12]} 27. Bh4 {[%clk 0:00:06]}  Nb4 {[%clk 0:01:10]} 28. Bf6 {[%clk 0:00:03]}  Nc6 {[%clk 0:01:01]} 29. Qh4 {[%clk 0:00:03]}  Nxe5 {[%clk 0:00:57]} 30. Bxe5 {[%clk 0:00:01]}  Qxe5 {[%clk 0:00:58]} 31. h3 {[%clk 0:00:01]}  Qxb2 {[%clk 0:00:57]} 32. Qh5 {[%clk 0:00:01]}  d4 {[%clk 0:00:49]} 33. Qd5 {[%clk 0:00:01]}  Qe2 {[%clk 0:00:45]} 34. Rf4 {[%clk 0:00:01]}  d3 {[%clk 0:00:41]} 35. Qxc4 {[%clk 0:00:02]}  Qe1+ {[%clk 0:00:41]} 36. Kh2 {[%clk 0:00:00]}  d2 {[%clk 0:00:41]} 0-1


[Site "https://www.chess.com"]

[Event "Titled Tuesday Blitz July 18 Early 2023"]
[White "Besedes, Danilo"]
[Black "Golubev, Mikhail"]
[WhiteFideId "946796"]
[BlackFideId "14100983"]
[WhiteElo "2483"]
[BlackElo "2608"]
[Result "1-0"]
[Round "8"]
[TimeControl "180+2"]
[Date "2023.07.18"]
[WhiteClock "0:01:29"]
[BlackClock "0:00:12"]
[Board "72"]

1. b3 {[%clk 0:03:00]}  d6 {[%clk 0:02:59]} 2. Bb2 {[%clk 0:03:00]}  Nd7 {[%clk 0:02:58]} 3. e3 {[%clk 0:03:01]}  e5 {[%clk 0:02:58]} 4. d4 {[%clk 0:03:02]}  exd4 {[%clk 0:02:56]} 5. exd4 {[%clk 0:03:02]}  Ngf6 {[%clk 0:02:54]} 6. Nf3 {[%clk 0:03:03]}  g6 {[%clk 0:02:48]} 7. Bd3 {[%clk 0:03:03]}  Bg7 {[%clk 0:02:47]} 8. O-O {[%clk 0:03:03]}  O-O {[%clk 0:02:47]} 9. Nbd2 {[%clk 0:03:03]}  b6 {[%clk 0:02:40]} 10. Re1 {[%clk 0:03:01]}  Bb7 {[%clk 0:02:39]} 11. c4 {[%clk 0:03:01]}  Nh5 {[%clk 0:02:32]} 12. Qc2 {[%clk 0:02:56]}  Nf4 {[%clk 0:02:31]} 13. Bf1 {[%clk 0:02:57]}  d5 {[%clk 0:02:25]} 14. g3 {[%clk 0:02:54]}  Ne6 {[%clk 0:02:23]} 15. Bg2 {[%clk 0:02:53]}  Rc8 {[%clk 0:02:12]} 16. Rad1 {[%clk 0:02:33]}  c5 {[%clk 0:02:02]} 17. dxc5 {[%clk 0:02:17]}  Bxb2 {[%clk 0:01:59]} 18. Qxb2 {[%clk 0:02:17]}  Ndxc5 {[%clk 0:01:59]} 19. Nf1 {[%clk 0:02:10]}  Nd7 {[%clk 0:01:28]} 20. cxd5 {[%clk 0:02:06]}  Nec5 {[%clk 0:01:28]} 21. Ne3 {[%clk 0:02:04]}  Qf6 {[%clk 0:01:21]} 22. Qxf6 {[%clk 0:01:58]}  Nxf6 {[%clk 0:01:22]} 23. Nd4 {[%clk 0:01:51]}  Rcd8 {[%clk 0:01:14]} 24. Nc6 {[%clk 0:01:43]}  Rd7 {[%clk 0:01:09]} 25. Bh3 {[%clk 0:01:40]}  Rd6 {[%clk 0:01:06]} 26. Nc4 {[%clk 0:01:38]}  Rxc6 {[%clk 0:00:56]} 27. dxc6 {[%clk 0:01:38]}  Bxc6 {[%clk 0:00:57]} 28. Rd6 {[%clk 0:01:37]}  Bd7 {[%clk 0:00:54]} 29. Bxd7 {[%clk 0:01:30]}  Ncxd7 {[%clk 0:00:52]} 30. Re7 {[%clk 0:01:30]}  Rd8 {[%clk 0:00:12]} 31. Ne5 {[%clk 0:01:29]} 1-0


[Site "https://www.chess.com"]